Workbook

Sheet Cost Sheet (hidden)
B2: =[8]QSRep!B7 -> Package 04 -
B4: =#REF! -> 
B6: Description | C6: Unit | D6: Quantity | E6: Rate | F6: Contractor's | G6: Employer's
F7: Value | G7: Value
B9: EARTHWORKS
A10: 1 | B10: Restricted excavation in all material | C10: m³ | D10: 1.96 | E10: R 244.64 | G10: R 479.49
A13: 2 | B13: Backfill insitu material to excavations | C13: m³ | D13: 0.96 | E13: R 284.76 | G13: R 273.37
B16: UN-REINFORCED CONCRETE
A18: 3 | B18: 50mm blinding to bases cast against excavations | C18: m² | D18: 1.96 | E18: R 168.27 | G18: R 329.81
B20: REINFORCED CONCRETE
A22: 4 | B22: 35MPa /19mm stone concrete to bases | C22: m³ | D22: 0.78 | E22: R 2,426.92 | G22: R 1,902.71
A23: 5 | B23: 35MPa /19mm stone concrete to plinths | C23: m³ | D23: 0.54 | E23: R 2,426.92 | G23: R 1,310.54
B25: SURFACE FINISHES
A27: 6 | B27: Wood float finish | C27: m² | D27: 1.96 | E27: R 63.00 | G27: R 123.48
B30: FORMWORK
A31: 7 | B31: Formwork to sides of concrete plinth and bases | C31: m² | D31: 5.84 | E31: R 394.78 | G31: R 2,305.52
B33: REINFORCEMENT
A35: 8 | B35: All bars | C35: ton | D35: 0.18 | E35: R 18,768.17 | G35: =E35*D35 -> R 3,397.04
B47: Sub Total | F47: =SUM(F8:F46) -> 0 | G47: =SUM(G8:G46) -> R 10,121.95
B48: Overhead 10% | F48: =F47*0.1 -> 0 | G48: =G47*0.1 -> R 1,012.19
B49: Sub Total | F49: =SUM(F47:F48) -> 0 | G49: =SUM(G47:G48) -> R 11,134.14
B50: Contigencies 15% | F50: =F49*0.15 -> 0 | G50: =G49*0.15 -> R 1,670.12
B51: Sub Total | F51: =SUM(F49:F50) -> 0 | G51: =SUM(G49:G50) -> R 12,804.27
B52: Profit 15% | F52: =F51*0.15 -> 0 | G52: =G51*0.15 -> R 1,920.64
F53: =SUM(F51:F52) -> 0 | G53: =SUM(G51:G52) -> R 14,724.91
B55: TOTAL ASSESSED COST (EXCLUDING VAT) | F55: =F53 -> 0 | G55: =G53 -> R 14,724.91
F57: Page 2 of 2

Sheet QS REPORT (hidden)
A1: MEDUPI POWER STATION PROJECT
A2: P06 - WTP TANK FARM PIPE RACK
A3: PROJECT CHANGE REQUEST: P06 - PCR ???????????
A4: CONTRACT NO:
A5: ORIGINATOR: N. Mashangu
A6: DESCRIPTION: Plinth Point 49
A8: Request:
A11: Item No. | B11: Description | C11: Unit | D11: Quantity | E11: Contractor's Rate | F11: Contractor's Quotation | G11: Engr's rep assessed rates | H11: Engr's rep estimated amounts
B13: EARTHWORKS
A14: 1 | B14: Restricted excavation in all material | C14: m³ | D14: ='calc. sheet'!G20 -> 1.96 | G14: R 244.64 | H14: =G14*D14 -> R 479.49
A17: 2 | B17: Backfill insitu material to excavations | C17: m³ | D17: ='calc. sheet'!R20 -> 0.96 | G17: R 284.76 | H17: =G17*D17 -> R 273.37
B20: UN-REINFORCED CONCRETE
A22: 3 | B22: 50mm blinding to bases cast against excavations | C22: m² | D22: ='calc. sheet'!L20 -> 1.96 | G22: R 168.27 | H22: =G22*D22 -> R 329.81
B24: REINFORCED CONCRETE
A26: 4 | B26: 35MPa /19mm stone concrete to bases | C26: m³ | D26: ='calc. sheet'!J20 -> 0.78 | G26: R 2,426.92 | H26: =G26*D26 -> R 1,902.71
A27: 5 | B27: 35MPa /19mm stone concrete to plinths | C27: m³ | D27: ='calc. sheet'!G36 -> 0.54 | G27: R 2,426.92 | H27: =G27*D27 -> R 1,310.54
B29: SURFACE FINISHES
A31: 6 | B31: Wood float finish | C31: m² | D31: =D22 -> 1.96 | G31: R 63.00 | H31: =G31*D31 -> R 123.48
B34: FORMWORK
A35: 7 | B35: Formwork to sides of concrete plinth and bases | C35: m² | D35: ='calc. sheet'!I36+'calc. sheet'!N6 -> 5.84 | G35: R 394.78 | H35: =G35*D35 -> R 2,305.52
B37: REINFORCEMENT
A39: 8 | B39: All bars | C39: ton | D39: =SUM(D26:D27)*0.1 -> 0.13 | G39: R 18,768.17 | H39: =G39*D39 -> R 2,484.91
B41: STEEL WORK
A43: 9 | B43: 200 x 12mm cast in plate galvanised with 100 x 50 x 5mm fishtail lugs | C43: kg | G43: 50.20 | H43: =G43*D43 -> R 0.00
A46: 10 | B46: 100 x 12mm cast in plate galvanised with 100 x 50 x 5mm fishtail lugs | C46: kg | G46: 50.20 | H46: =G46*D46 -> R 0.00
B49: Sub Total | F49: =SUM(F14:F39) -> R 0.00 | H49: =SUM(H14:H48) -> R 9,209.82
C51: Item
B53: TOTAL ESTIMATED COST (EXCL VAT) | D53: R | F53: =F49 -> R 0.00 | H53: =SUM(H49:H51) -> R 9,209.82
A56: Note: | B56: Base date for the rates used is Aug 2008 for Medupi LP Services

Sheet calc. sheet (hidden)
A1: BASES
F2: Excv. For bases | I2: Conc. To bases | L2: Blinding | N2: Fmwk to bases | P2: Backfill
A4: Item | B4: Ref | C4: no. | D4: L | E4: B | F4: H | G4: m3 | I4: thk | J4: m3 | L4: m2 | N4: m2 | P4: Plinths | R4: m3
A6: 1 | B6: 1 | C6: 1 | D6: 1.4 | E6: 1.4 | F6: 1 | G6: =F6*E6*D6 -> 1.96 | I6: 0.4 | J6: =D6*E6*I6 -> 0.784 | L6: =D6*E6 -> 1.96 | N6: =D6*4*0.4 -> 2.24 | P6: =D28*E28*0.6 -> 0.216 | R6: =G6-P6-J6 -> 0.96
F20: TOTAL | G20: =SUM(G6:G18) -> 1.96 | J20: =SUM(J6:J18) -> 0.784 | L20: =SUM(L6:L18) -> 1.96 | N20: =SUM(N6:N18) -> 2.24 | R20: =SUM(R6:R18) -> 0.96
A24: PLINTHS
F25: Conc. To Plinths | I25: Fmwk to Plinths
A27: Item | B27: Ref | C27: no. | D27: L | E27: B | F27: H | G27: m3 | I27: m2
C28: 1 | D28: 0.6 | E28: 0.6 | F28: 1.5 | G28: =C28*D28*E28*F28 -> 0.54 | I28: =(D28*2+E28*2)*F28*C28 -> 3.6
G29: =C29*D29*E29*F29 -> 0 | I29: 0
G30: 0 | I30: 0
G31: 0 | I31: 0
G32: 0 | I32: 0
G33: 0 | I33: 0
G34: 0 | I34: 0
F36: TOTAL | G36: =SUM(G28:G35) -> 0.54 | I36: =SUM(I28:I35) -> 3.6

Sheet Rebar (hidden)
A1: DWG | B1: REV | C1: TYPE | D1: LENGTH | E1: NO. | F1: FACTOR | G1: RESULT | H1: REMARKS | I1: DIN NO | J1: D/NOTE | K1: NO. | L1: D/NOTE | M1: NO. | N1: D/NOTE | O1: NO. | P1: D/NOTE | Q1: NO. | R1: TOTAL | S1: LENGTH | T1: FACTOR | U1: RESULT | V1: VAR.
F2: =IF(C2="R8",0.000395)+IF(C2="R10",0.000617)+IF(C2="R12",0.000888)+IF(C2="Y10",0.000617)+IF(C2="Y12",0.000888)+IF(C2="Y16",0.00158)+IF(C2="Y20",0.00247)+IF(C2="Y25",0.00385)+IF(C2="Y32",0.00631)+IF(C2="Y40",0.00986) -> 0 | G2: =ROUND(D2*E2*T2,3) -> 0 | H2: BM 01 | I2: 1390 | J2: GER09-41 | K2: 144 | R2: =SUM(K2,M2,O2,Q2) -> 144 | S2: =D2 -> 0.000 | T2: =IF(C2="R8",0.000395)+IF(C2="R10",0.000617)+IF(C2="R12",0.000888)+IF(C2="Y10",0.000617)+IF(C2="Y12",0.000888)+IF(C2="Y16",0.00158)+IF(C2="Y20",0.00247)+IF(C2="Y25",0.00385)+IF(C2="Y32",0.00631)+IF(C2="Y40",0.00986) -> 0 | U2: =ROUND(R2*S2*T2,3) -> 0 | V2: =G2-U2 -> 0
C3: Y16 | D3: 2.200 | E3: 8 | F3: 0.00158 | G3: 0.028 | H3: BM 02 | I3: 1390 | J3: GER09-41 | K3: 69 | R3: 69 | S3: 2.200 | T3: 0.00158 | U3: 0.24 | V3: -0.212
C4: Y16 | D4: 1.550 | E4: 16 | F4: 0.00158 | G4: 0.039 | H4: BM 03 | I4: 1390 | J4: GER09-41 | K4: 147 | R4: 147 | S4: 1.550 | T4: 0.00158 | U4: 0.36 | V4: -0.321
C5: Y16 | D5: 2.100 | E5: 8 | F5: 0.00158 | G5: 0.027 | H5: BM 04 | I5: 1390 | J5: GER09-41 | K5: 15 | R5: 15 | S5: 2.100 | T5: 0.00158 | U5: 0.05 | V5: -0.023
C6: r8 | D6: 1.300 | E6: 2 | F6: 0.000395 | G6: 0.001 | H6: BM 05 | I6: 1390 | J6: GER09-41 | K6: 15 | R6: 15 | S6: 1.300 | T6: 0.000395 | U6: 0.008 | V6: -0.007
C7: Y16 | D7: 2.000 | E7: 16 | F7: 0.00158 | G7: 0.051 | H7: BM 06 | I7: 1390 | J7: GER09-41 | K7: 15 | R7: 15 | S7: 2.000 | T7: 0.00158 | U7: 0.047 | V7: 0.004
C8: r8 | D8: 2.200 | E8: 10 | F8: 0.000395 | G8: 0.009 | H8: BM 07 | I8: 1390 | J8: GER09-41 | K8: 6 | R8: 6 | S8: 2.200 | T8: 0.000395 | U8: 0.005 | V8: 0.004
C9: r8 | D9: 1.150 | E9: 20 | F9: 0.000395 | G9: 0.009 | H9: BM 09 | I9: 1390 | J9: GER09-41 | K9: 10 | R9: 10 | S9: 1.150 | T9: 0.000395 | U9: 0.005 | V9: 0.004
C10: Y16 | D10: 1.100 | E10: 10 | F10: 0.00158 | G10: 0.017 | H10: BM 12 | I10: 1390 | J10: GER09-41 | K10: 3 | R10: 3 | S10: 1.100 | T10: 0.00158 | U10: 0.005 | V10: 0.012
F11: 0 | G11: 0 | H11: BM 13 | I11: 1390 | J11: GER09-41 | K11: 11 | R11: 11 | S11: 0.000 | T11: 0 | U11: 0 | V11: 0
F12: 0 | G12: 0 | H12: BM 14 | I12: 1390 | J12: GER09-41 | K12: 16 | R12: 16 | S12: 0.000 | T12: 0 | U12: 0 | V12: 0
F13: 0 | G13: 0 | H13: BM 15 | I13: 1390 | J13: GER09-41 | K13: 8 | R13: 8 | S13: 0.000 | T13: 0 | U13: 0 | V13: 0
F14: 0 | G14: 0 | H14: BM 16 | I14: 1390 | J14: GER09-41 | K14: 8 | R14: 8 | S14: 0.000 | T14: 0 | U14: 0 | V14: 0
F15: 0 | G15: 0 | H15: BM 17 | I15: 1390 | J15: GER09-41 | K15: 8 | R15: 8 | S15: 0.000 | T15: 0 | U15: 0 | V15: 0
F16: 0 | G16: 0 | H16: BM 18 | I16: 1390 | J16: GER09-41 | K16: 8 | R16: 8 | S16: 0.000 | T16: 0 | U16: 0 | V16: 0
F17: 0 | G17: 0 | H17: BM 19 | I17: 1390 | J17: GER09-41 | K17: 8 | R17: 8 | S17: 0.000 | T17: 0 | U17: 0 | V17: 0
F18: 0 | G18: 0 | H18: BM 20 | I18: 1390 | J18: GER09-41 | K18: 2 | R18: 2 | S18: 0.000 | T18: 0 | U18: 0 | V18: 0
F19: 0 | G19: 0 | H19: BM 21 | I19: 1390 | J19: GER09-41 | K19: 14 | R19: 14 | S19: 0.000 | T19: 0 | U19: 0 | V19: 0
F20: 0 | G20: 0 | H20: BM 22 | I20: 1390 | J20: GER09-41 | K20: 8 | R20: 8 | S20: 0.000 | T20: 0 | U20: 0 | V20: 0
F21: 0 | G21: 0 | H21: BM 23 | I21: 1390 | J21: GER09-41 | K21: 8 | R21: 8 | S21: 0.000 | T21: 0 | U21: 0 | V21: 0
F22: 0 | G22: 0 | H22: BM 24 | I22: 1390 | J22: GER09-41 | K22: 8 | R22: 8 | S22: 0.000 | T22: 0 | U22: 0 | V22: 0
F23: 0 | G23: 0 | H23: BM 25 | I23: 1390 | J23: GER09-41 | K23: 8 | R23: 8 | S23: 0.000 | T23: 0 | U23: 0 | V23: 0
F24: 0 | G24: 0 | H24: BM 30 | I24: 1390 | J24: GER09-41 | K24: 6 | R24: 6 | S24: 0.000 | T24: 0 | U24: 0 | V24: 0
F25: 0 | G25: 0 | H25: BM 31 | I25: 1390 | J25: GER09-41 | K25: 6 | R25: 6 | S25: 0.000 | T25: 0 | U25: 0 | V25: 0
F26: 0 | G26: 0 | H26: BM 32 | I26: 1390 | J26: GER09-41 | K26: 12 | R26: 12 | S26: 0.000 | T26: 0 | U26: 0 | V26: 0
F27: 0 | G27: 0 | H27: BM 33 | I27: 1390 | J27: GER09-41 | R27: 0 | S27: 0.000 | T27: 0 | U27: 0 | V27: 0
F28: 0 | G28: 0 | R28: 0 | S28: 0.000 | T28: 0 | U28: 0 | V28: 0
F29: 0 | G29: 0 | R29: 0 | S29: 0.000 | T29: 0 | U29: 0 | V29: 0
F30: 0 | G30: 0 | R30: 0 | S30: 0.000 | T30: 0 | U30: 0 | V30: 0
F31: 0 | G31: 0 | R31: 0 | S31: 0.000 | T31: 0 | U31: 0 | V31: 0
F32: 0 | G32: 0 | R32: 0 | S32: 0.000 | T32: 0 | U32: 0 | V32: 0
F33: 0 | G33: 0 | R33: 0 | S33: 0.000 | T33: 0 | U33: 0 | V33: 0
F34: 0 | G34: 0 | R34: 0 | S34: 0.000 | T34: 0 | U34: 0 | V34: 0
F35: 0 | G35: 0 | R35: 0 | S35: 0.000 | T35: 0 | U35: 0 | V35: 0
F36: 0 | G36: 0 | R36: 0 | S36: 0.000 | T36: 0 | U36: 0 | V36: 0
F37: 0 | G37: 0 | R37: 0 | S37: 0.000 | T37: 0 | U37: 0 | V37: 0
F38: 0 | G38: 0 | R38: 0 | S38: 0.000 | T38: 0 | U38: 0 | V38: 0
F39: 0 | G39: 0 | R39: 0 | S39: 0.000 | T39: 0 | U39: 0 | V39: 0
F40: 0 | G40: 0 | R40: 0 | S40: 0.000 | T40: 0 | U40: 0 | V40: 0
F41: 0 | G41: 0 | R41: 0 | S41: 0.000 | T41: 0 | U41: 0 | V41: 0
F42: 0 | G42: 0 | R42: 0 | S42: 0.000 | T42: 0 | U42: 0 | V42: 0
F43: 0 | G43: 0 | R43: 0 | S43: 0.000 | T43: 0 | U43: 0 | V43: 0
F44: 0 | G44: 0 | R44: 0 | S44: 0.000 | T44: 0 | U44: 0 | V44: 0
F45: 0 | G45: 0 | R45: 0 | S45: 0.000 | T45: 0 | U45: 0 | V45: 0
F46: 0 | G46: 0 | R46: 0 | S46: 0.000 | T46: 0 | U46: 0 | V46: 0
F47: 0 | G47: 0 | R47: 0 | S47: 0.000 | T47: 0 | U47: 0 | V47: 0
F48: 0 | G48: 0 | R48: 0 | S48: 0.000 | T48: 0 | U48: 0 | V48: 0
F49: 0 | G49: 0 | R49: 0 | S49: 0.000 | T49: 0 | U49: 0 | V49: 0
F50: 0 | G50: 0 | R50: 0 | S50: 0.000 | T50: 0 | U50: 0 | V50: 0
F51: 0 | G51: 0 | R51: 0 | S51: 0.000 | T51: 0 | U51: 0 | V51: 0
F52: 0 | G52: 0 | R52: 0 | S52: 0.000 | T52: 0 | U52: 0 | V52: 0
F53: 0 | G53: 0 | R53: 0 | S53: 0.000 | T53: 0 | U53: 0 | V53: 0
F54: 0 | G54: 0 | R54: 0 | S54: 0.000 | T54: 0 | U54: 0 | V54: 0
F55: 0 | G55: 0 | R55: 0 | S55: 0.000 | T55: 0 | U55: 0 | V55: 0
F56: 0 | G56: 0 | R56: 0 | S56: 0.000 | T56: 0 | U56: 0 | V56: 0
F57: 0 | G57: 0 | R57: 0 | S57: 0.000 | T57: 0 | U57: 0 | V57: 0
F58: 0 | G58: 0 | R58: 0 | S58: 0.000 | T58: 0 | U58: 0 | V58: 0
F59: 0 | G59: 0 | R59: 0 | S59: 0.000 | T59: 0 | U59: 0 | V59: 0
F60: 0 | G60: 0 | R60: 0 | S60: 0.000 | T60: 0 | U60: 0 | V60: 0
F61: 0 | G61: 0 | R61: 0 | S61: 0.000 | T61: 0 | U61: 0 | V61: 0
F62: 0 | G62: 0 | R62: 0 | S62: 0.000 | T62: 0 | U62: 0 | V62: 0
F63: 0 | G63: 0 | R63: 0 | S63: 0.000 | T63: 0 | U63: 0 | V63: 0
F64: 0 | G64: 0 | R64: 0 | S64: 0.000 | T64: 0 | U64: 0 | V64: 0
F65: 0 | G65: 0 | R65: 0 | S65: 0.000 | T65: 0 | U65: 0 | V65: 0
F66: =IF(C66="R8",0.000395)+IF(C66="R10",0.000617)+IF(C66="R12",0.000888)+IF(C66="Y10",0.000617)+IF(C66="Y12",0.000888)+IF(C66="Y16",0.00158)+IF(C66="Y20",0.00247)+IF(C66="Y25",0.00385)+IF(C66="Y32",0.00631)+IF(C66="Y40",0.00986) -> 0 | G66: =ROUND(D66*E66*T66,3) -> 0 | R66: =SUM(K66,M66,O66,Q66) -> 0 | S66: =D66 -> 0.000 | T66: =IF(C66="R8",0.000395)+IF(C66="R10",0.000617)+IF(C66="R12",0.000888)+IF(C66="Y10",0.000617)+IF(C66="Y12",0.000888)+IF(C66="Y16",0.00158)+IF(C66="Y20",0.00247)+IF(C66="Y25",0.00385)+IF(C66="Y32",0.00631)+IF(C66="Y40",0.00986) -> 0 | U66: =ROUND(R66*S66*T66,3) -> 0 | V66: =G66-U66 -> 0
F67: 0 | G67: 0 | R67: 0 | S67: 0.000 | T67: 0 | U67: 0 | V67: 0
F68: 0 | G68: 0 | R68: 0 | S68: 0.000 | T68: 0 | U68: 0 | V68: 0
F69: 0 | G69: 0 | R69: 0 | S69: 0.000 | T69: 0 | U69: 0 | V69: 0
F70: 0 | G70: 0 | R70: 0 | S70: 0.000 | T70: 0 | U70: 0 | V70: 0
F71: 0 | G71: 0 | R71: 0 | S71: 0.000 | T71: 0 | U71: 0 | V71: 0
F72: 0 | G72: 0 | R72: 0 | S72: 0.000 | T72: 0 | U72: 0 | V72: 0
F73: 0 | G73: 0 | R73: 0 | S73: 0.000 | T73: 0 | U73: 0 | V73: 0
F74: 0 | G74: 0 | R74: 0 | S74: 0.000 | T74: 0 | U74: 0 | V74: 0
F75: 0 | G75: 0 | R75: 0 | S75: 0.000 | T75: 0 | U75: 0 | V75: 0
F76: 0 | G76: 0 | R76: 0 | S76: 0.000 | T76: 0 | U76: 0 | V76: 0
F77: 0 | G77: 0 | R77: 0 | S77: 0.000 | T77: 0 | U77: 0 | V77: 0
F78: 0 | G78: 0 | R78: 0 | S78: 0.000 | T78: 0 | U78: 0 | V78: 0
F79: 0 | G79: 0 | R79: 0 | S79: 0.000 | T79: 0 | U79: 0 | V79: 0
F80: 0 | G80: 0 | R80: 0 | S80: 0.000 | T80: 0 | U80: 0 | V80: 0
F81: 0 | G81: 0 | R81: 0 | S81: 0.000 | T81: 0 | U81: 0 | V81: 0
F82: 0 | G82: 0 | R82: 0 | S82: 0.000 | T82: 0 | U82: 0 | V82: 0
F83: 0 | G83: 0 | R83: 0 | S83: 0.000 | T83: 0 | U83: 0 | V83: 0
F84: 0 | G84: 0 | R84: 0 | S84: 0.000 | T84: 0 | U84: 0 | V84: 0
F85: 0 | G85: 0 | R85: 0 | S85: 0.000 | T85: 0 | U85: 0 | V85: 0
F86: 0 | G86: 0 | R86: 0 | S86: 0.000 | T86: 0 | U86: 0 | V86: 0
F87: 0 | G87: 0 | R87: 0 | S87: 0.000 | T87: 0 | U87: 0 | V87: 0
F88: 0 | G88: 0 | R88: 0 | S88: 0.000 | T88: 0 | U88: 0 | V88: 0
F89: 0 | G89: 0 | R89: 0 | S89: 0.000 | T89: 0 | U89: 0 | V89: 0
F90: 0 | G90: 0 | R90: 0 | S90: 0.000 | T90: 0 | U90: 0 | V90: 0
F91: 0 | G91: 0 | R91: 0 | S91: 0.000 | T91: 0 | U91: 0 | V91: 0
F92: 0 | G92: 0 | R92: 0 | S92: 0.000 | T92: 0 | U92: 0 | V92: 0
F93: 0 | G93: 0 | R93: 0 | S93: 0.000 | T93: 0 | U93: 0 | V93: 0
F94: 0 | G94: 0 | R94: 0 | S94: 0.000 | T94: 0 | U94: 0 | V94: 0
F95: 0 | G95: 0 | R95: 0 | S95: 0.000 | T95: 0 | U95: 0 | V95: 0
F96: 0 | G96: 0 | R96: 0 | S96: 0.000 | T96: 0 | U96: 0 | V96: 0
F97: 0 | G97: 0 | R97: 0 | S97: 0.000 | T97: 0 | U97: 0 | V97: 0
F98: 0 | G98: 0 | R98: 0 | S98: 0.000 | T98: 0 | U98: 0 | V98: 0
F99: 0 | G99: 0 | R99: 0 | S99: 0.000 | T99: 0 | U99: 0 | V99: 0
F100: 0 | G100: 0 | R100: 0 | S100: 0.000 | T100: 0 | U100: 0 | V100: 0
F101: 0 | G101: 0 | R101: 0 | S101: 0.000 | T101: 0 | U101: 0 | V101: 0
F102: 0 | G102: 0 | R102: 0 | S102: 0.000 | T102: 0 | U102: 0 | V102: 0
F103: 0 | G103: 0 | R103: 0 | S103: 0.000 | T103: 0 | U103: 0 | V103: 0
F104: 0 | G104: 0 | R104: 0 | S104: 0.000 | T104: 0 | U104: 0 | V104: 0
F105: 0 | G105: 0 | R105: 0 | S105: 0.000 | T105: 0 | U105: 0 | V105: 0
F106: 0 | G106: 0 | R106: 0 | S106: 0.000 | T106: 0 | U106: 0 | V106: 0
F107: 0 | G107: 0 | R107: 0 | S107: 0.000 | T107: 0 | U107: 0 | V107: 0
F108: 0 | G108: 0 | R108: 0 | S108: 0.000 | T108: 0 | U108: 0 | V108: 0
F109: 0 | G109: 0 | R109: 0 | S109: 0.000 | T109: 0 | U109: 0 | V109: 0
F110: 0 | G110: 0 | R110: 0 | S110: 0.000 | T110: 0 | U110: 0 | V110: 0
F111: 0 | G111: 0 | R111: 0 | S111: 0.000 | T111: 0 | U111: 0 | V111: 0
F112: 0 | G112: 0 | R112: 0 | S112: 0.000 | T112: 0 | U112: 0 | V112: 0
R113: 0 | S113: 0.000 | T113: 0 | U113: 0 | V113: 0
R114: 0 | S114: 0.000 | T114: 0 | U114: 0 | V114: 0
R115: 0 | S115: 0.000 | T115: 0 | U115: 0 | V115: 0
R116: 0 | S116: 0.000 | T116: 0 | U116: 0 | V116: 0
R117: 0 | S117: 0.000 | T117: 0 | U117: 0 | V117: 0
R118: 0 | S118: 0.000 | T118: 0 | U118: 0 | V118: 0
R119: 0 | S119: 0.000 | T119: 0 | U119: 0 | V119: 0
R120: 0 | S120: 0.000 | T120: 0 | U120: 0 | V120: 0
R121: 0 | S121: 0.000 | T121: 0 | U121: 0 | V121: 0
R122: 0 | S122: 0.000 | T122: 0 | U122: 0 | V122: 0
R123: 0 | S123: 0.000 | T123: 0 | U123: 0 | V123: 0
R124: 0 | S124: 0.000 | T124: 0 | U124: 0 | V124: 0
R125: 0 | S125: 0.000 | T125: 0 | U125: 0 | V125: 0
R126: 0 | S126: 0.000 | T126: 0 | U126: 0 | V126: 0
R127: 0 | S127: 0.000 | T127: 0 | U127: 0 | V127: 0
R128: 0 | S128: 0.000 | T128: 0 | U128: 0 | V128: 0
R129: 0 | S129: 0.000 | T129: 0 | U129: 0 | V129: 0
R130: =SUM(K130,M130,O130,Q130) -> 0 | S130: =D130 -> 0.000 | T130: =IF(C130="R8",0.000395)+IF(C130="R10",0.000617)+IF(C130="R12",0.000888)+IF(C130="Y10",0.000617)+IF(C130="Y12",0.000888)+IF(C130="Y16",0.00158)+IF(C130="Y20",0.00247)+IF(C130="Y25",0.00385)+IF(C130="Y32",0.00631)+IF(C130="Y40",0.00986) -> 0 | U130: =ROUND(R130*S130*T130,3) -> 0 | V130: =G130-U130 -> 0
R131: 0 | S131: 0.000 | T131: 0 | U131: 0 | V131: 0
R132: 0 | S132: 0.000 | T132: 0 | U132: 0 | V132: 0
R133: 0 | S133: 0.000 | T133: 0 | U133: 0 | V133: 0
R134: 0 | S134: 0.000 | T134: 0 | U134: 0 | V134: 0
R135: 0 | S135: 0.000 | T135: 0 | U135: 0 | V135: 0
R136: 0 | S136: 0.000 | T136: 0 | U136: 0 | V136: 0
R137: 0 | S137: 0.000 | T137: 0 | U137: 0 | V137: 0
R138: 0 | S138: 0.000 | T138: 0 | U138: 0 | V138: 0
R139: 0 | S139: 0.000 | T139: 0 | U139: 0 | V139: 0
R140: 0 | S140: 0.000 | T140: 0 | U140: 0 | V140: 0
R141: 0 | S141: 0.000 | T141: 0 | U141: 0 | V141: 0
R142: 0 | S142: 0.000 | T142: 0 | U142: 0 | V142: 0
R143: 0 | S143: 0.000 | T143: 0 | U143: 0 | V143: 0
R144: 0 | S144: 0.000 | T144: 0 | U144: 0 | V144: 0
R145: 0 | S145: 0.000 | T145: 0 | U145: 0 | V145: 0
R146: 0 | S146: 0.000 | T146: 0 | U146: 0 | V146: 0
R147: 0 | S147: 0.000 | T147: 0 | U147: 0 | V147: 0
R148: 0 | S148: 0.000 | T148: 0 | U148: 0 | V148: 0
R149: 0 | S149: 0.000 | T149: 0 | U149: 0 | V149: 0
R150: 0 | S150: 0.000 | T150: 0 | U150: 0 | V150: 0
R151: 0 | S151: 0.000 | T151: 0 | U151: 0 | V151: 0
R152: 0 | S152: 0.000 | T152: 0 | U152: 0 | V152: 0
R153: 0 | S153: 0.000 | T153: 0 | U153: 0 | V153: 0
R154: 0 | S154: 0.000 | T154: 0 | U154: 0 | V154: 0
R155: 0 | S155: 0.000 | T155: 0 | U155: 0 | V155: 0
R156: 0 | S156: 0.000 | T156: 0 | U156: 0 | V156: 0
R157: 0 | S157: 0.000 | T157: 0 | U157: 0 | V157: 0
R158: 0 | S158: 0.000 | T158: 0 | U158: 0 | V158: 0
R159: 0 | S159: 0.000 | T159: 0 | U159: 0 | V159: 0
R160: 0 | S160: 0.000 | T160: 0 | U160: 0 | V160: 0
R161: 0 | S161: 0.000 | T161: 0 | U161: 0 | V161: 0
R162: 0 | S162: 0.000 | T162: 0 | U162: 0 | V162: 0
R163: 0 | S163: 0.000 | T163: 0 | U163: 0 | V163: 0
R164: 0 | S164: 0.000 | T164: 0 | U164: 0 | V164: 0
R165: 0 | S165: 0.000 | T165: 0 | U165: 0 | V165: 0
R166: 0 | S166: 0.000 | T166: 0 | U166: 0 | V166: 0
R167: 0 | S167: 0.000 | T167: 0 | U167: 0 | V167: 0
R168: 0 | S168: 0.000 | T168: 0 | U168: 0 | V168: 0
R169: 0 | S169: 0.000 | T169: 0 | U169: 0 | V169: 0
R170: 0 | S170: 0.000 | T170: 0 | U170: 0 | V170: 0
R171: 0 | S171: 0.000 | T171: 0 | U171: 0 | V171: 0
R172: 0 | S172: 0.000 | T172: 0 | U172: 0 | V172: 0
R173: 0 | S173: 0.000 | T173: 0 | U173: 0 | V173: 0
R174: 0 | S174: 0.000 | T174: 0 | U174: 0 | V174: 0
R175: 0 | S175: 0.000 | T175: 0 | U175: 0 | V175: 0
R176: 0 | S176: 0.000 | T176: 0 | U176: 0 | V176: 0
R177: 0 | S177: 0.000 | T177: 0 | U177: 0 | V177: 0
R178: 0 | S178: 0.000 | T178: 0 | U178: 0 | V178: 0
R179: 0 | S179: 0.000 | T179: 0 | U179: 0 | V179: 0
R180: 0 | S180: 0.000 | T180: 0 | U180: 0 | V180: 0
R181: 0 | S181: 0.000 | T181: 0 | U181: 0 | V181: 0
R182: 0 | S182: 0.000 | T182: 0 | U182: 0 | V182: 0
R183: 0 | S183: 0.000 | T183: 0 | U183: 0 | V183: 0
R184: 0 | S184: 0.000 | T184: 0 | U184: 0 | V184: 0
R185: 0 | S185: 0.000 | T185: 0 | U185: 0 | V185: 0
R186: 0 | S186: 0.000 | T186: 0 | U186: 0 | V186: 0
R187: 0 | S187: 0.000 | T187: 0 | U187: 0 | V187: 0
R188: 0 | S188: 0.000 | T188: 0 | U188: 0 | V188: 0
R189: 0 | S189: 0.000 | T189: 0 | U189: 0 | V189: 0
R190: 0 | S190: 0.000 | T190: 0 | U190: 0 | V190: 0
R191: 0 | S191: 0.000 | T191: 0 | U191: 0 | V191: 0
R192: 0 | S192: 0.000 | T192: 0 | U192: 0 | V192: 0
R193: 0 | S193: 0.000 | T193: 0 | U193: 0 | V193: 0
R194: =SUM(K194,M194,O194,Q194) -> 0 | S194: =D194 -> 0.000 | T194: =IF(C194="R8",0.000395)+IF(C194="R10",0.000617)+IF(C194="R12",0.000888)+IF(C194="Y10",0.000617)+IF(C194="Y12",0.000888)+IF(C194="Y16",0.00158)+IF(C194="Y20",0.00247)+IF(C194="Y25",0.00385)+IF(C194="Y32",0.00631)+IF(C194="Y40",0.00986) -> 0 | U194: =ROUND(R194*S194*T194,3) -> 0 | V194: =G194-U194 -> 0
R195: 0 | S195: 0.000 | T195: 0 | U195: 0 | V195: 0
R196: 0 | S196: 0.000 | T196: 0 | U196: 0 | V196: 0
R197: 0 | S197: 0.000 | T197: 0 | U197: 0 | V197: 0
R198: 0 | S198: 0.000 | T198: 0 | U198: 0 | V198: 0
R199: 0 | S199: 0.000 | T199: 0 | U199: 0 | V199: 0
R200: 0 | S200: 0.000 | T200: 0 | U200: 0 | V200: 0
... 41 more rows

Sheet Plates (hidden)
A1: REV | B1: REF | C1: PLATES | H1: LUGS | L1: ANCHOR PLATES | Q1: RESULT | R1: D/NOTE | S1: NO. | T1: D/NOTE | U1: NO. | V1: D/NOTE | W1: NO. | X1: D/NOTE | Y1: NO. | Z1: TOTAL | AA1: VAR. | AC1: invoice | AG1: SI | AH1: MEMO | AI1: CVI
C2: NO | D2: DIM A | E2: DIM B | F2: DIM C | G2: FACTOR | H2: NO | I2: TYPE | J2: LENGTH | K2: FACTOR | L2: NO | M2: DIM A | N2: DIM B | O2: DIM C | P2: FACTOR
G3: 7850 | K3: =IF($I3="M10",0.617,0)+IF($I3="M16",1.579,0)+IF($I3="M20",2.467,0)+IF($I3="M24",3.553,0)+IF($I3="M30",5.551,0)+IF($I3="M36",7.994,0)+IF($I3="M42",10.88,0) -> 0 | P3: 7850 | Q3: =ROUND(C3*D3*E3*F3*G3+C3*H3*J3*K3+L3*M3*N3*O3*P3,3) -> 0 | Z3: =S3+U3+W3+Y3 -> 0 | AA3: =Q3-Z3 -> 0
B4: P 1 & P2- DET G1 | C4: 2 | D4: 0.73 | E4: 0.1 | F4: 0.01 | G4: 7850 | K4: 0 | L4: =5*2 -> 10 | M4: 0.15 | N4: 0.05 | O4: 0.005 | P4: 7850 | Q4: =ROUND(C4*D4*E4*F4*G4+C4*H4*J4*K4+L4*M4*N4*O4*P4,3) -> 14.405
B5: P3, 4 & 5-DET G2 | C5: =1*3 -> 3 | D5: 0.73 | E5: 0.1 | F5: 0.01 | G5: 7850 | K5: 0 | L5: =5*3 -> 15 | M5: 0.15 | N5: 0.05 | O5: 0.005 | P5: 7850 | Q5: =ROUND(C5*D5*E5*F5*G5+C5*H5*J5*K5+L5*M5*N5*O5*P5,3) -> 21.607
Q6: =SUM(Q3:Q5) -> 36.012
B9: P3, 4 & 5-DET G2 | C9: =2*3 -> 6 | D9: 0.73 | E9: 0.2 | F9: 0.012 | G9: 7850 | K9: 0 | L9: =5*6 -> 30 | M9: 0.15 | N9: 0.05 | O9: 0.005 | P9: 7850 | Q9: =ROUND(C9*D9*E9*F9*G9+C9*H9*J9*K9+L9*M9*N9*O9*P9,3) -> 91.35 | Z9: 0 | AA9: 91.35
G10: 7850 | K10: 0 | P10: 7850 | Q10: =ROUND(C10*D10*E10*F10*G10+C10*H10*J10*K10+L10*M10*N10*O10*P10,3) -> 0 | Z10: 0 | AA10: 0
G11: 7850 | K11: 0 | P11: 7850 | Q11: 0 | Z11: 0 | AA11: 0
G12: 7850 | K12: 0 | P12: 7850 | Q12: 0 | Z12: 0 | AA12: 0
G13: 7850 | K13: 0 | P13: 7850 | Q13: 0 | Z13: 0 | AA13: 0
G14: 7850 | K14: 0 | P14: 7850 | Q14: 0 | Z14: 0 | AA14: 0
G15: 7850 | K15: 0 | P15: 7850 | Q15: 0 | Z15: 0 | AA15: 0
G16: 7850 | K16: 0 | P16: 7850 | Q16: 0 | Z16: 0 | AA16: 0
G17: 7850 | K17: 0 | P17: 7850 | Q17: 0 | Z17: 0 | AA17: 0
G18: 7850 | K18: 0 | P18: 7850 | Q18: 0 | Z18: 0 | AA18: 0
G19: 7850 | K19: 0 | P19: 7850 | Q19: 0 | Z19: 0 | AA19: 0
G20: 7850 | K20: 0 | P20: 7850 | Q20: 0 | Z20: 0 | AA20: 0
G21: 7850 | K21: 0 | P21: 7850 | Q21: 0 | Z21: 0 | AA21: 0
G22: 7850 | K22: 0 | P22: 7850 | Q22: 0 | Z22: 0 | AA22: 0
G23: 7850 | K23: 0 | P23: 7850 | Q23: 0 | Z23: 0 | AA23: 0
G24: 7850 | K24: 0 | P24: 7850 | Q24: 0 | Z24: 0 | AA24: 0
G25: 7850 | K25: 0 | P25: 7850 | Q25: 0 | Z25: 0 | AA25: 0
G26: 7850 | K26: 0 | P26: 7850 | Q26: 0 | Z26: 0 | AA26: 0
G27: 7850 | K27: 0 | P27: 7850 | Q27: 0 | Z27: 0 | AA27: 0
G28: 7850 | K28: 0 | P28: 7850 | Q28: 0 | Z28: 0 | AA28: 0
G29: 7850 | K29: 0 | P29: 7850 | Q29: 0 | Z29: 0 | AA29: 0
G30: 7850 | K30: 0 | P30: 7850 | Q30: 0 | Z30: 0 | AA30: 0
G31: 7850 | K31: 0 | P31: 7850 | Q31: 0 | Z31: 0 | AA31: 0
G32: 7850 | K32: 0 | P32: 7850 | Q32: 0 | Z32: 0 | AA32: 0
G33: 7850 | K33: 0 | P33: 7850 | Q33: 0 | Z33: 0 | AA33: 0
G34: 7850 | K34: 0 | P34: 7850 | Q34: 0 | Z34: 0 | AA34: 0
G35: 7850 | K35: 0 | P35: 7850 | Q35: 0 | Z35: 0 | AA35: 0
G36: 7850 | K36: 0 | P36: 7850 | Q36: =ROUND(C36*D36*E36*F36*G36+C36*H36*J36*K36+L36*M36*N36*O36*P36,3) -> 0 | Z36: 0 | AA36: 0
G37: 7850 | K37: 0 | P37: 7850 | Q37: =ROUND(C37*D37*E37*F37*G37+C37*L37*M37*N37*O37*P37,3) -> 0 | Z37: 0 | AA37: 0
G38: 7850 | K38: 0 | P38: 7850 | Q38: =ROUND(C38*D38*E38*F38*G38+C38*H38*J38*K38+L38*M38*N38*O38*P38,3) -> 0 | Z38: 0 | AA38: 0
G39: 7850 | K39: 0 | P39: 7850 | Q39: =ROUND(C39*D39*E39*F39*G39+C39*H39*J39*K39+L39*M39*N39*O39*P39,3) -> 0 | Z39: 0 | AA39: 0
G40: 7850 | K40: 0 | P40: 7850 | Q40: =ROUND(C40*D40*E40*F40*G40+C40*H40*J40*K40+L40*M40*N40*O40*P40,3) -> 0 | Z40: 0 | AA40: 0
G41: 7850 | K41: 0 | P41: 7850 | Q41: =ROUND(C41*D41*E41*F41*G41+C41*L41*M41*N41*O41*P41,3) -> 0 | Z41: 0 | AA41: 0
G42: 7850 | K42: 0 | P42: 7850 | Q42: =ROUND(C42*D42*E42*F42*G42+C42*H42*J42*K42+L42*M42*N42*O42*P42,3) -> 0 | Z42: 0 | AA42: 0
G43: 7850 | K43: 0 | P43: 7850 | Q43: =ROUND(C43*D43*E43*F43*G43+C43*H43*J43*K43+L43*M43*N43*O43*P43,3) -> 0 | Z43: 0 | AA43: 0
G44: 7850 | K44: 0 | P44: 7850 | Q44: =ROUND(C44*D44*E44*F44*G44+C44*H44*J44*K44+L44*M44*N44*O44*P44,3) -> 0 | Z44: 0 | AA44: 0
G45: 7850 | K45: 0 | P45: 7850 | Q45: =ROUND(C45*D45*E45*F45*G45+C45*L45*M45*N45*O45*P45,3) -> 0 | Z45: 0 | AA45: 0
G46: 7850 | K46: 0 | P46: 7850 | Q46: =ROUND(C46*D46*E46*F46*G46+C46*H46*J46*K46+L46*M46*N46*O46*P46,3) -> 0 | Z46: 0 | AA46: 0
G47: 7850 | K47: 0 | P47: 7850 | Q47: =ROUND(C47*D47*E47*F47*G47+C47*H47*J47*K47+L47*M47*N47*O47*P47,3) -> 0 | Z47: 0 | AA47: 0
G48: 7850 | K48: 0 | P48: 7850 | Q48: =ROUND(C48*D48*E48*F48*G48+C48*H48*J48*K48+L48*M48*N48*O48*P48,3) -> 0 | Z48: 0 | AA48: 0
G49: 7850 | K49: 0 | P49: 7850 | Q49: =ROUND(C49*D49*E49*F49*G49+C49*L49*M49*N49*O49*P49,3) -> 0 | Z49: 0 | AA49: 0
G50: 7850 | K50: 0 | P50: 7850 | Q50: =ROUND(C50*D50*E50*F50*G50+C50*H50*J50*K50+L50*M50*N50*O50*P50,3) -> 0 | Z50: 0 | AA50: 0
G51: 7850 | K51: 0 | P51: 7850 | Q51: =ROUND(C51*D51*E51*F51*G51+C51*H51*J51*K51+L51*M51*N51*O51*P51,3) -> 0 | Z51: 0 | AA51: 0
G52: 7850 | K52: 0 | P52: 7850 | Q52: =ROUND(C52*D52*E52*F52*G52+C52*H52*J52*K52+L52*M52*N52*O52*P52,3) -> 0 | Z52: 0 | AA52: 0
G53: 7850 | K53: 0 | P53: 7850 | Q53: =ROUND(C53*D53*E53*F53*G53+C53*L53*M53*N53*O53*P53,3) -> 0 | Z53: 0 | AA53: 0
G54: 7850 | K54: 0 | P54: 7850 | Q54: =ROUND(C54*D54*E54*F54*G54+C54*H54*J54*K54+L54*M54*N54*O54*P54,3) -> 0 | Z54: 0 | AA54: 0
G55: 7850 | K55: 0 | P55: 7850 | Q55: =ROUND(C55*D55*E55*F55*G55+C55*H55*J55*K55+L55*M55*N55*O55*P55,3) -> 0 | Z55: 0 | AA55: 0
G56: 7850 | K56: 0 | P56: 7850 | Q56: =ROUND(C56*D56*E56*F56*G56+C56*H56*J56*K56,3) -> 0 | Z56: 0 | AA56: 0
G57: 7850 | K57: 0 | P57: 7850 | Q57: 0 | Z57: 0 | AA57: 0
G58: 7850 | K58: 0 | P58: 7850 | Q58: 0 | Z58: 0 | AA58: 0
G59: 7850 | K59: 0 | P59: 7850 | Q59: 0 | Z59: 0 | AA59: 0
G60: 7850 | K60: 0 | P60: 7850 | Q60: 0 | Z60: 0 | AA60: 0
G61: 7850 | K61: 0 | P61: 7850 | Q61: 0 | Z61: 0 | AA61: 0
G62: 7850 | K62: 0 | P62: 7850 | Q62: 0 | Z62: 0 | AA62: 0
G63: 7850 | K63: 0 | P63: 7850 | Q63: 0 | Z63: 0 | AA63: 0
G64: 7850 | K64: 0 | P64: 7850 | Q64: 0 | Z64: 0 | AA64: 0
G65: 7850 | K65: 0 | P65: 7850 | Q65: 0 | Z65: 0 | AA65: 0
G66: 7850 | K66: 0 | P66: 7850 | Q66: 0 | Z66: 0 | AA66: 0
G67: 7850 | K67: =IF($I67="M10",0.617,0)+IF($I67="M16",1.579,0)+IF($I67="M20",2.467,0)+IF($I67="M24",3.553,0)+IF($I67="M30",5.551,0)+IF($I67="M36",7.994,0)+IF($I67="M42",10.88,0) -> 0 | P67: 7850 | Q67: 0 | Z67: =S67+U67+W67+Y67 -> 0 | AA67: =Q67-Z67 -> 0
G68: 7850 | K68: 0 | P68: 7850 | Q68: 0 | Z68: 0 | AA68: 0
G69: 7850 | K69: 0 | P69: 7850 | Q69: 0 | Z69: 0 | AA69: 0
G70: 7850 | K70: 0 | P70: 7850 | Q70: 0 | Z70: 0 | AA70: 0
G71: 7850 | K71: 0 | P71: 7850 | Q71: 0 | Z71: 0 | AA71: 0
G72: 7850 | K72: 0 | P72: 7850 | Q72: 0 | Z72: 0 | AA72: 0
G73: 7850 | K73: 0 | P73: 7850 | Q73: 0 | Z73: 0 | AA73: 0
G74: 7850 | K74: 0 | P74: 7850 | Q74: 0 | Z74: 0 | AA74: 0
G75: 7850 | K75: 0 | P75: 7850 | Q75: 0 | Z75: 0 | AA75: 0
G76: 7850 | K76: 0 | P76: 7850 | Q76: 0 | Z76: 0 | AA76: 0
G77: 7850 | K77: 0 | P77: 7850 | Q77: 0 | Z77: 0 | AA77: 0
G78: 7850 | K78: 0 | P78: 7850 | Q78: 0 | Z78: 0 | AA78: 0
G79: 7850 | K79: 0 | P79: 7850 | Q79: 0 | Z79: 0 | AA79: 0
G80: 7850 | K80: 0 | P80: 7850 | Q80: 0 | Z80: 0 | AA80: 0
G81: 7850 | K81: 0 | P81: 7850 | Q81: 0 | Z81: 0 | AA81: 0
G82: 7850 | K82: 0 | P82: 7850 | Q82: 0 | Z82: 0 | AA82: 0
G83: 7850 | K83: 0 | P83: 7850 | Q83: 0 | Z83: 0 | AA83: 0
G84: 7850 | K84: 0 | P84: 7850 | Q84: 0 | Z84: 0 | AA84: 0
G85: 7850 | K85: 0 | P85: 7850 | Q85: 0 | Z85: 0 | AA85: 0
G86: 7850 | K86: 0 | P86: 7850 | Q86: 0 | Z86: 0 | AA86: 0
G87: 7850 | K87: 0 | P87: 7850 | Q87: 0 | Z87: 0 | AA87: 0
G88: 7850 | K88: 0 | P88: 7850 | Q88: 0 | Z88: 0 | AA88: 0
G89: 7850 | K89: 0 | P89: 7850 | Q89: 0 | Z89: 0 | AA89: 0
G90: 7850 | K90: 0 | P90: 7850 | Q90: 0 | Z90: 0 | AA90: 0
G91: 7850 | K91: 0 | P91: 7850 | Q91: 0 | Z91: 0 | AA91: 0
G92: 7850 | K92: 0 | P92: 7850 | Q92: 0 | Z92: 0 | AA92: 0
G93: 7850 | K93: 0 | P93: 7850 | Q93: 0 | Z93: 0 | AA93: 0
G94: 7850 | K94: 0 | P94: 7850 | Q94: 0 | Z94: 0 | AA94: 0
G95: 7850 | K95: 0 | P95: 7850 | Q95: 0 | Z95: 0 | AA95: 0
G96: 7850 | K96: 0 | P96: 7850 | Q96: 0 | Z96: 0 | AA96: 0
G97: 7850 | K97: 0 | P97: 7850 | Q97: 0 | Z97: 0 | AA97: 0
G98: 7850 | K98: 0 | P98: 7850 | Q98: 0 | Z98: 0 | AA98: 0
G99: 7850 | K99: 0 | P99: 7850 | Q99: 0 | Z99: 0 | AA99: 0
G100: 7850 | K100: 0 | P100: 7850 | Q100: 0 | Z100: 0 | AA100: 0
G101: 7850 | K101: 0 | P101: 7850 | Q101: 0 | Z101: 0 | AA101: 0
G102: 7850 | K102: 0 | P102: 7850 | Q102: 0 | Z102: 0 | AA102: 0
G103: 7850 | K103: 0 | P103: 7850 | Q103: 0 | Z103: 0 | AA103: 0
G104: 7850 | K104: 0 | P104: 7850 | Q104: 0 | Z104: 0 | AA104: 0
G105: 7850 | K105: 0 | P105: 7850 | Q105: 0 | Z105: 0 | AA105: 0
G106: 7850 | K106: 0 | P106: 7850 | Q106: 0 | Z106: 0 | AA106: 0
G107: 7850 | K107: =IF($I107="M10",0.617,0)+IF($I107="M12",0.888,0)+IF($I107="M16",1.579,0)+IF($I107="M20",2.467,0)+IF($I107="M24",3.553,0)+IF($I107="M30",5.551,0)+IF($I107="M36",7.994,0)+IF($I107="M42",10.88,0) -> 0 | P107: 7850 | Q107: 0 | Z107: 0 | AA107: 0
G108: 7850 | K108: 0 | P108: 7850 | Q108: 0 | Z108: 0 | AA108: 0
G109: 7850 | K109: 0 | P109: 7850 | Q109: 0 | Z109: 0 | AA109: 0
G110: 7850 | K110: 0 | P110: 7850 | Q110: 0 | Z110: 0 | AA110: 0
G111: 7850 | K111: 0 | P111: 7850 | Q111: 0 | Z111: 0 | AA111: 0
G112: 7850 | K112: 0 | P112: 7850 | Q112: 0 | Z112: 0 | AA112: 0
G113: 7850 | K113: 0 | P113: 7850 | Q113: 0 | Z113: 0 | AA113: 0
G114: 7850 | K114: 0 | P114: 7850 | Q114: 0 | Z114: 0 | AA114: 0
G115: 7850 | K115: 0 | P115: 7850 | Q115: 0 | Z115: 0 | AA115: 0
G116: 7850 | K116: 0 | P116: 7850 | Q116: 0 | Z116: 0 | AA116: 0
G117: 7850 | K117: 0 | P117: 7850 | Q117: 0 | Z117: 0 | AA117: 0
G118: 7850 | K118: 0 | P118: 7850 | Q118: 0 | Z118: 0 | AA118: 0
G119: 7850 | K119: 0 | P119: 7850 | Q119: 0 | Z119: 0 | AA119: 0
G120: 7850 | K120: 0 | P120: 7850 | Q120: =ROUND(C120*D120*E120*F120*G120+C120*H120*J120*K120,3) -> 0 | Z120: 0 | AA120: 0
G121: 7850 | K121: 0 | P121: 7850 | Q121: 0 | Z121: 0 | AA121: 0
G122: 7850 | K122: 0 | P122: 7850 | Q122: 0 | Z122: 0 | AA122: 0
G123: 7850 | K123: 0 | P123: 7850 | Q123: 0 | Z123: 0 | AA123: 0
G124: 7850 | K124: 0 | P124: 7850 | Q124: 0 | Z124: 0 | AA124: 0
G125: 7850 | K125: 0 | P125: 7850 | Q125: 0 | Z125: 0 | AA125: 0
G126: 7850 | K126: 0 | P126: 7850 | Q126: 0 | Z126: 0 | AA126: 0
G127: 7850 | K127: 0 | P127: 7850 | Q127: 0 | Z127: 0 | AA127: 0
G128: 7850 | K128: 0 | P128: 7850 | Q128: 0 | Z128: 0 | AA128: 0
G129: 7850 | K129: 0 | P129: 7850 | Q129: 0 | Z129: 0 | AA129: 0
G130: 7850 | K130: 0 | P130: 7850 | Q130: 0 | Z130: 0 | AA130: 0
G131: 7850 | K131: 0 | P131: 7850 | Q131: 0 | Z131: =S131+U131+W131+Y131 -> 0 | AA131: =Q131-Z131 -> 0
G132: 7850 | K132: 0 | P132: 7850 | Q132: 0 | Z132: 0 | AA132: 0
G133: 7850 | K133: 0 | P133: 7850 | Q133: 0 | Z133: 0 | AA133: 0
G134: 7850 | K134: 0 | P134: 7850 | Q134: 0 | Z134: 0 | AA134: 0
G135: 7850 | K135: 0 | P135: 7850 | Q135: 0 | Z135: 0 | AA135: 0
G136: 7850 | K136: 0 | P136: 7850 | Q136: 0 | Z136: 0 | AA136: 0
G137: 7850 | K137: 0 | P137: 7850 | Q137: 0 | Z137: 0 | AA137: 0
G138: 7850 | K138: 0 | P138: 7850 | Q138: 0 | Z138: 0 | AA138: 0
G139: 7850 | K139: 0 | P139: 7850 | Q139: 0 | Z139: 0 | AA139: 0
G140: 7850 | K140: 0 | P140: 7850 | Q140: 0 | Z140: 0 | AA140: 0
G141: 7850 | K141: 0 | P141: 7850 | Q141: 0 | Z141: 0 | AA141: 0
G142: 7850 | K142: 0 | P142: 7850 | Q142: 0 | Z142: 0 | AA142: 0
G143: 7850 | K143: 0 | P143: 7850 | Q143: 0 | Z143: 0 | AA143: 0
G144: 7850 | K144: 0 | P144: 7850 | Q144: 0 | Z144: 0 | AA144: 0
G145: 7850 | K145: 0 | P145: 7850 | Q145: 0 | Z145: 0 | AA145: 0
G146: 7850 | K146: 0 | P146: 7850 | Q146: 0 | Z146: 0 | AA146: 0
G147: 7850 | K147: =IF($I147="M16",1.579,0)+IF($I147="M20",2.467,0)+IF($I147="M24",3.553,0)+IF($I147="M30",5.551,0)+IF($I147="M36",7.994,0)+IF($I147="M42",10.88,0) -> 0 | P147: 7850 | Q147: 0 | Z147: 0 | AA147: 0
Z148: 0 | AA148: 0
Z149: 0 | AA149: 0
Z150: 0 | AA150: 0
Z151: 0 | AA151: 0
Z152: 0 | AA152: 0
Z153: 0 | AA153: 0
Z154: 0 | AA154: 0
Z155: 0 | AA155: 0
Z156: 0 | AA156: 0
Z157: 0 | AA157: 0
Z158: 0 | AA158: 0
Z159: 0 | AA159: 0
Z160: 0 | AA160: 0
Z161: 0 | AA161: 0

Sheet Sheet3 (hidden)

Sheet Read Me FIRST
A1: Project: | C1: KUSILE POWER STATION PROJECT
A2: Enquiry No. | C2: 0
A3: Package Name: | C3: ='[9]5.1Tender Cover Sheet'!C21 -> Procurement/Servicing of the Nitrogen plant spares and equipment
A4: Tenderer's Name:
A7: READ ME
B9: Read these notes BEFORE you commence input or make any changes to this workbook
B11: The Tenderer must provide a clear indication on the Cover Sheet as to whether the offer is "main" or "alternative" (and if there are several alternatives, to number them). There must be a separate Excel file for each offer if applicable
B13: NOTE: ALL CALCULATIONS ARE THE RESPONSIBILITY OF THE TENDERER, AND MUST BE CHECKED THOROUGHLY. ANY DISCREPANCY FOUND IN THE CALCULATIONS IN THIS WORKBOOK MUST BE BROUGHT TO THE ATTENTION OF ESKOM, THROUGH THE DEIGNATED BUYER!
A16: 1 | B16: This workbook contains the following sheets:
B17: Read Me | C17: This sheet provides an overview to the Tenderer of the content and role of the sheets making up the Price Schedules. It will not form part of the tender or contract.
B18: 5.1 Tender Cover Sheet | C18: This is the cover sheet for Section 5.1 and provides the total tender price. It is also the source of the package name, tenderer name etc for the other sheets.
B19: 5.1.1 Preamble | C19: This sheet provides general guidelines for this section.
B20: 5.1.2 Price Schedule | C20: This is where the total amounts of all the trades are shown
A24: 2 | B24: Conventions used in this workbook
B25: The following conventions have been used in this workbook to facilitate its accurate use:
B26: Red | C26: This GREEN shading is used for cells where DATA ENTRY is required from the Tenderer. The Tenderer must complete the information in these GREEN shaded cells.
C27: PLEASE REFRAIN from tampering with ANY other cells contained in this workbook as it may affect Eskom's standard formulae and lead to data integrity issues.

Sheet 5.1 Tender Cover Sheet
B2: KUSILE POWER STATION PROJECT
B15: PRICING INFORMATION
B17: TENDER INFORMATION
B19: ENQUIRY No.
B21: NAME OF PACKAGE: | C21: Procurement/Servicing of the Nitrogen plant spares and equipment
B23: TENDERER’S NAME:
B26: Annexure IT 5.1 Price Schedules
B29: THE PRICE: IN ZAR | C29: ='5.1.2 Price Schedule'!G33 -> 0 RAND
B30: (excluding VAT)
B31: RAND VALUE IN WORDS
B36: DATE :
B40: FULL NAMES OF SIGNATORY:
B44: DESIGNATION OF SIGNATORY:
B48: SIGNATURE :

Sheet 5.1.1 Preambe
A1: Project: | C1: KUSILE POWER STATION PROJECT
A2: Enquiry No. | C2: 0
A3: Package Name: | C3: ='[9]5.1Tender Cover Sheet'!C21 -> Procurement/Servicing of the Nitrogen plant spares and equipment
A4: Tenderer's Name:
A6: 5.1.1.1 PREAMBLE TO PRICE SCHEDULE
A8: 1 | B8: The Provisional Price Schedule provides the basis of valuation of all the work activities and inputs and information for general contract progress monitoring.
A9: 2 | B9: The amount due at each application for payment date is based on activities and/or milestones completed as indicated on the Price Schedule/Bills of Quantities. The Tenderer must provide all necessary information which is required to determine amounts due in respect of each application for payment relative to the activities.
A10: 3 | B10: The total of the prices must include for all direct and indirect costs, overheads, profits, on costs, risks, liabilities, obligations, etc. relative to the contract.
A11: 4 | B11: Pricing by the Contractor to be done in conjunction with the scope of work document, specification, etc.

Sheet 5.1.2 Price Schedule
B3: Item | D3: Unit of Measure | E3: Number Off | F3: Cost Per Item | G3: Amount
B5: 1 | C5: Calibration/refurbishment i.e. removal, installation, commissioning and calibration of Dew Point probe | D5: Each | E5: 1 | G5: =E5*F5 -> 0
B6: 2 | C6: Supply install, commission and calibrate of PANAMETRICS GAS OX-5 STD PPM SENSOR, 0 TO 100 AND 1000 PPM | D6: Each | E6: 2 | G6: =E6*F6 -> 0
B7: 3 | C7: Supply, install, commission and calibrate of Panametrics Gas XMTC-62-22-11-XMTC-CAL-A-1 (H2 In N2, 98-100%) in HyStat B | D7: Each | E7: 1 | G7: 0
B8: 4 | C8: Supply , install, commission and calibrate of new MICHEL TRANSMET I.S. Dew point probe | D8: Each | E8: 2 | G8: 0
B9: 5 | C9: Calibration/verification of XMTC required for HyStat A and metering panel | D9: Each | E9: 2 | G9: 0
B10: 6 | C10: Supply of 8m ½” stainless steel braided flexible hoses with cable reinforcing across the two ends, fitted with nitrogen regulators from rated 1,5 time max nitrogen MCP operating pressure and quick connector coupling to cennect to nitrogen panel. | D10: Each | E10: 2 | G10: 0
B11: 7 | C11: Supply of 8m ½” stainless steel braided flexible hoses with cable reinforcing across the two ends, fitted with hydrogen regulators from 20MPa hydrogen supply pressure with ¼” valve and quick connector for nitrogen purging. Flexible hose end to be fitted with quick connector nipple to connect to Hydrogen MCP panel. Pressure rating 30MPa | D11: Each | E11: 2 | G11: 0
B12: 8 | C12: Supply, install, commission chiller 3-way valve actuator Siemens SAX61.03 | D12: Each | E12: 1 | G12: 0
B13: 9 | C13: Supply H3 Data Books | D13: Sum | E13: 1 | G13: 0
B14: 10 | C14: Supply CF Memory Cards to download and Back up Siemens Program SIMATIC S7, Micro Memory Card 2MB(6ES7953-8LL31-0AA0) TRANSCEND CF180 4 GB, Industrial Grade | D14: Each | E14: 2 | G14: 0
B15: 11 | C15: Supply and install hydrogen vent stainless steel tube on the safety valve vent, venting 2m above the roof | D15: Sum | E15: 1 | G15: 0
B16: 12 | C16: Supply, install and commission (leakage check) receiver flexible connections (inlet and outlet) with stainless steel braided reinforced flexible hoses rated 4,5MPa, 3/4". | D16: Sum | E16: 8 | G16: 0
B17: 13 | C17: Supply, upload and commission of Hystst A program update: 1. to cater for a 4-20mA signal from the metering PLC to meet the receiver filling philosophy. 2. include XMTC H2 in Air settings on the HMI. Hystat A and B | D17: Sum | E17: 1 | G17: 0
B18: 14 | C18: Supply, install and commission: 1.Three (3) DP-DP Couplers in each Hydrostat and Metering Station Panels to allow the communication between the three PLCs and the Employer’s Distributed Control System (ABB 800xA) 2.Profibus cabling between the Hydrostat PLCs and the Metering panel PLC. 3.The Contractor shall update the PLC software program in each of the Panels and the Virtual Signal List to be free issued to the Employers C&I Contractor for configuration and mapping of signals transfer between the Hydrogen Plant PLCs to the DCS. | D18: Sum | E18: 1 | G18: =E18*F18 -> 0
B19: 15 | C19: Supply, Install and commission of a permanent potable water 10.0m x 25NB Threaded galvanised SANS62-1 piping to the chiller cooling water system together with an isolation valve and water pressure regulator set at 220kPa | D19: Sum | E19: 1 | G19: 0
B20: 16 | C20: Supply, install and commission of KROHNE variable area flowmeter for Hystat B | D20: Sum | E20: 1 | G20: 0
B21: 17 | C21: Removal and installation and commissioning of hydrogen leak detector, to be relocated inside the hystat for effective leak detection functionality. | D21: Sum | E21: 2 | G21: 0
B22: 18 | C22: Commissioning of metering panel i.e. leakage test and full functionality test including receiver filling. | D22: Sum | E22: 1 | G22: 0
B23: 19 | C23: Perform leakage test on entire plant, HySTAT A &B, 4 x bulk storage and piping. | D23: Sum | E23: 1 | G23: 0
B24: 20 | C24: Hydrogen connection repair | D24: Each | E24: 25 | G24: =E24*F24 -> 0
B25: 21 | C25: Bulk storage hydrogen vessel 24Nm3 purge (Labour) | D25: Each | E25: 4 | G25: 0
B26: 22 | C26: Nitrogen supply for bulk storage purge, pressurisation to 2,7MPa and 12 hour pressure decay test <0.5%, and vessel isolated at 510kPa. Nitrogen pressure. | D26: Each | E26: 4 | G26: 0
B27: 23 | C27: Nitrogen supply for hydrogen production plant commissioning | D27: Each | E27: 1 | G27: 0
B28: 24 | C28: Labour - technician | D28: Day | E28: 3 | G28: 0
B29: 25 | C29: Labour - artisans | D29: Day | E29: 3 | G29: 0
B30: 26 | C30: Travelling | D30: Day | E30: 3 | G30: 0
B31: 27 | C31: Remove, calibrate (with gaseous meduim) and reinstall safety valve | D31: Each | E31: 20 | G31: 0
G33: =SUM(G5:G31) -> 0

Sheet Sheet4 (hidden)
A1: Ovivo Aqua Africa - Schedule of Costs
A2: Sub Clause 13.3 - Request for Variation Proposal
A3: 2016-11-30
A4: Supply of Water Treatment Plant Membranes
A5: Reference: PBP-AQE-P06-2148
A6: Rev 0
A7: Item | B7: Description | C7: Number | D7: Rate Per | E7: Rand Cost | F7: 6% Overhead
A13: Sub Total
A14: % Profit
A15: Total Sell
A16: Total
A17: Hours
A18: Hour
A19: Overhead
A20: Cost
A21: Profit
A22: 1
A23: Engineering Costs
A24: 1.1
A25: Mechanical/Structural Engineer
A26: Mechanical Engineering Costs
A27: R 570.00
A28: 0
A29: 0
A30: 0
A31: 15%
A32: 0
A33: 0
A34: 1.2
A35: Project Management
A36: 4
A37: R 675.00
A38: 2,700.00
A39: 162
A40: 2,862.00
A41: 15%
A42: 3,291.30
A43: 429.3
A44: 1.3
A45: Purchasing and Finance
A46: Procurement
A47: 4
A48: R 275.00
A49: 1,100.00
A50: 66
A51: 1,166.00
A52: 15%
A53: 1,340.90
A54: 174.9
A55: Project Finance
A56: 2
A57: R 355.00
A58: 710
A59: 42.6
A60: 752.6
A61: 15%
A62: 865.49
A63: 112.89
A64: 1.4
A65: Drawing Office
A66: R 475.00
A67: 0
A68: 0
A69: 0
A70: 15%
A71: 0
A72: 0
A73: 1.5
A74: QA/QC
A75: Site
A76: 8
A77: R 575.00
A78: 4,600.00
A79: 276
A80: 4,876.00
A81: 15%
A82: 5,607.40
A83: 731.4
A84: Total Section 1
A85: 9,656.60
A86: 11,105.09
A87: 1,448.49
A88: Item
A89: Description
A90: Number
A91: Cost Per
A92: Rand Cost
A93: 6%
A94: Total Cost
A95: % Profit
A96: Total Sell
A97: Total
A98: Off
A99: Item
A100: Overhead
A101: Profit
A102: 2
A103: Material and Labour
A104: 2.1
A105: Supply
A106: 2.1.1
A107: UF Membranes (ROCH Pentair Xiga 40)
A108: 240
A109: R 23,000.00
A110: 5,520,000.00
A111: 331,200.00
A112: 5,851,200.00
A113: 15%
A114: 6,728,880.00
A115: 877,680.00
A116: 2.1.2
A117: RO Membranes ( DOW BW30XFR-400/34 i)
A118: 826
A119: R 6,956.00
A120: 5,745,656.00
A121: 344,739.36
A122: 6,090,395.36
A123: 15%
A124: 7,003,954.66
A125: 913,559.30
A126: 2.1.3
A127: GTM Membranes (Memcon 14 x 28" Liqui-Cel)
A128: 15
A129: R 189,148.00
A130: 2,837,220.00
A131: 170,233.20
A132: 3,007,453.20
A133: 15%
A134: 3,458,571.18
A135: 451,117.98
A136: 2.1.4
A137: CEDI Module (Evoqua IP-VNX55E-2)
A138: 8
A139: R 233,280.00
A140: 1,866,240.00
A141: 111,974.40
A142: 1,978,214.40
A143: 15%
A144: 2,274,946.56
A145: 296,732.16
A146: 2.2
A147: Freight
A148: Estimate Only
A149: 1
A150: R 360,000.00
A151: 360,000.00
A152: 21,600.00
A153: 381,600.00
A154: 15%
A155: 438,840.00
A156: 57,240.00
A157: Total Section 2
A158: 17,308,862.96
A159: 19,905,192.40
A160: 2,596,329.44
A161: Total
A162: 17,318,520
A163: 19,916,297
A164: 2,597,778
